Cogmind - Beta 15 @@@ ROGUE MODE // 2025.06.30 @ 23:48:44 Player: Not_Jesus8 Result: Self-destructed Performance ------------- Evolutions (3) 1500 Regions Visited (6) 1200 Robots Destroyed (19) 95 Value Destroyed (309) 309 Prototype IDs (25) 500 Alien Tech Used (0) 0 Bonus (300) 300 TOTAL SCORE: 3904 Bonus ------- Aligned with FarCom 300 Cogmind --------- Core Integrity 700/700 Matter 215/300 Energy 145/160 System Corruption 0% Temperature Cool (6) Movement Hovering (34) Location -7/Factory Parts ------- > --- POWER (1) -------- Light Nuclear Core > --- PROPULSION (7) --- Aerolev Unit Aerolev Unit Aerolev Unit Improved Airjet Improved Airjet > --- UTILITY (3) ------ High-capacity Storage Unit Weight Redist. System > --- WEAPON (2) ------- (None) > --- INVENTORY (20) --- Light Fission Core Wheel Humpback High-capacity Matter Pod (66) Machine Analyzer Improved Terrain Scanner Terrain Scan Processor Terrain Scan Processor Melee Analysis Suite ECM Suite Reaction Control System Supersonic Drone Bay (1/1) Light Assault Rifle Gauss Rifle Gauss Rifle Gauss Rifle Shock Bomb Launcher Mining Laser Katana Peak State ------------ > --- POWER ------------ Light Ion Engine > --- PROPULSION ------- Aerolev Unit Aerolev Unit Aerolev Unit Improved Airjet Improved Airjet > --- UTILITY ---------- High-capacity Storage Unit Weight Redist. System > --- WEAPON ----------- Gauss Rifle Gauss Rifle > --- INVENTORY -------- Light Fission Core Humpback High-capacity Matter Pod Machine Analyzer Improved Terrain Scanner Terrain Scan Processor Melee Analysis Suite ECM Suite Reaction Control System Supersonic Drone Bay Light Assault Rifle Mining Laser [Rating: 37] Favorites ----------- Power Light Ion Engine Engine Light Ion Engine Power Core Light Nuclear Core Propulsion Light Treads Treads Light Treads Wheel Wheel Hover Unit Aerolev Unit Utility High-capacity Storage Unit Device Seismic Detector Storage High-capacity Storage Unit Weapon Medium Laser Energy Gun Medium Laser Ballistic Gun Light Assault Rifle Ballistic Cannon Improved Light Cannon Build | -11 -10 -10 -10 -9 -8 -7 ------- Run | Yrd Mat Min Exi Min Mat Fac Slots Evolved 6 | . . . . . 4 2 Power . | . . . . . . . Propulsion 5 | . . . . . 4 1 Utility 1 | . . . . . . 1 Weapon . | . . . . . . . Parts Attached 26 | 7 1 . 3 2 13 . Power 3 | 1 . . . . 2 . Engine 2 | 1 . . . . 1 . Core 1 | . . . . . 1 . Reactor . | . . . . . . . Propulsion 12 | 2 1 . 1 . 8 . Treads 3 | 2 . . . . 1 . Leg . | . . . . . . . Wheel 3 | . 1 . 1 . 1 . Hover 6 | . . . . . 6 . Flight . | . . . . . . . Utility 5 | 2 . . 2 . 1 . Device 3 | 1 . . 1 . 1 . Storage 2 | 1 . . 1 . . . Processor . | . . . . . . . Hackware . | . . . . . . . Protection . | . . . . . . . Artifact . | . . . . . . . Weapon 6 | 2 . . . 2 2 . Energy Gun 2 | 2 . . . . . . Energy Cannon . | . . . . . . . Ballistic Gun 3 | . . . . 1 2 . Ballistic Cannon 1 | . . . . 1 . . Launcher . | . . . . . . . Special Weapon . | . . . . . . . Impact Weapon . | . . . . . . . Slashing Weapon . | . . . . . . . Piercing Weapon . | . . . . . . . Special Melee Weapon . | . . . . . . . Unidentified Prototypes 2 | . . . . . 2 . Parts Lost 4 | . . . . . 4 . Power 1 | . . . . . 1 . Propulsion 2 | . . . . . 2 . Utility 1 | . . . . . 1 . Weapon . | . . . . . . . Highest Loss Streak 3 | . . . . . 3 . To Critical Strikes . | . . . . . . . Average Backups 9 | 1 3 6 7 9 15 19 Power . | . . . . 1 1 1 Propulsion 2 | 1 2 2 1 2 2 1 Utility 5 | . 1 3 3 5 8 10 Weapon 1 | . . 1 1 1 3 7 Tool/Special . | . . . . . . . Unused Backups 18 | . . . . . 2 16 Power 1 | . . . . . . 1 Propulsion 2 | . . . . . 2 . Utility 9 | . . . . . . 9 Weapon 6 | . . . . . . 6 Tool/Special . | . . . . . . . Average Slot Usage (%) 83 | . 100 100 100 100 61 61 Engine 9 | . 14 14 14 14 4 . Treads 9 | . 26 14 11 . 6 . Wheel 11 | . 1 14 16 28 6 . Hover 7 | . . . . . 15 38 Device 9 | . 14 14 14 14 4 7 Storage 11 | . 14 14 14 14 9 7 Energy Gun 12 | . 28 28 28 7 . . Ballistic Gun 6 | . . . . 11 10 . Ballistic Cannon 3 | . . . . 8 4 . Peak Build Rating 37 | 7 7 7 15 10 37 33 Average Rating 12 | 5 7 7 9 9 20 33 On Entrance 10 | . 7 7 7 9 10 33 Naked Turns . | . . . . . . . Heaviest Build 51 | 12 12 12 47 49 51 45 Greatest Support 48 | 40 40 10 26 26 48 48 Greatest Overweight (x) 5 | . 1 1 1 1 5 . Average Overweight (x) 1 | . . 1 . 1 1 . Largest Inventory Capacity 20 | 8 8 8 20 20 20 20 Average Capacity 14 | 7 8 8 9 20 20 20 Most Carried 20 | 3 6 6 10 11 20 20 Average Carried 10 | 1 3 6 7 10 16 20 Final Capacity 20 | 8 8 8 20 20 20 20 Final Carried 20 | 3 6 6 10 11 20 20 Class Distribution -------------------- 100% | Mutant Dominant Class ---------------- Mutant | -10/Materials Mutant | -10/Mines Mutant | -10/Exiles Mutant | -9/Mines Mutant | -8/Materials Mutant | -7/Factory Resources | -11 -10 -10 -10 -9 -8 -7 ----------- Run | Yrd Mat Min Exi Min Mat Fac Matter Collected 600 | 270 . . . 127 203 . Remotely . | . . . . . . . Salvage Created 593 | 180 . . . 55 358 . Parts 28 | 7 . . . 5 16 . Haulers Intercepted 2 | . . . . . 2 . Recyclers Shooed 1 | 1 . . . . . . Parts Field Recycled . | . . . . . . . Retrieved Matter . | . . . . . . . Parts Self-Destructed . | . . . . . . . Prevented . | . . . . . . . Kills | -11 -10 -10 -10 -9 -8 -7 ------- Run | Yrd Mat Min Exi Min Mat Fac Combat Hostiles Destroyed 8 | . . . . 4 4 . Guns 6 | . . . . 4 2 . Cannons 2 | . . . . . 2 . Classes Destroyed 9 | 3 . . . 1 5 . Worker 1 | 1 . . . . . . Builder 2 | . . . . . 2 . Tunneler 4 | 4 . . . . . . Hauler 2 | . . . . . 2 . Recycler 2 | 1 . . . . 1 . Swarmer 4 | . . . . 4 . . Grunt 2 | . . . . . 2 . Sentry 1 | . . . . . 1 . Hunter 1 | . . . . . 1 . Best Kill Streak 5 | 4 . . . 3 5 . Combat Bots Only 3 | . . . . 3 3 . Max Kills in Single Turn 1 | 1 . . . 1 1 . Gunslinging . | . . . . . . . Exploded . | . . . . . . . Melee . | . . . . . . . Uniques/NPCs Destroyed . | . . . . . . . Combat | -11 -10 -10 -10 -9 -8 -7 -------- Run | Yrd Mat Min Exi Min Mat Fac Hostile Shots Fired 76 | . . . . 30 46 . Missed 20 | . . . . 8 12 . Hits 56 | . . . . 22 34 . Projectile 56 | . . . . 22 34 . Critical Strikes 1 | . . . . . 1 . Damage Taken 715 | . . . . 175 540 . Core 205 | . . . . 70 135 . Absorbed by Shields . | . . . . . . . Core Remaining (%) 82 | 100 . . . 72 75 . Volleys Fired 54 | 12 2 . . 11 29 . Largest 2 | 2 2 . . 2 2 . Hottest 90 | 90 90 . . 90 56 . Shots Fired 108 | 24 4 . . 22 58 . Gun 84 | 24 4 . . 22 34 . Cannon 24 | . . . . . 24 . Launcher . | . . . . . . . Special . | . . . . . . . Kinetic 59 | . . . . 1 58 . Thermal 49 | 24 4 . . 21 . . Explosive . | . . . . . . . Electromagnetic . | . . . . . . . Robot Hit Streak 11 | 8 3 . . 4 11 . Robot Miss Streak 6 | 2 1 . . 6 2 . Penetration Max 1 | . . . . . 1 . Secondary Targets 2 | . . . . 2 . . Max Gunslinging Chain 1 | . . . . 1 . . Shots Hit Robots 72 | 16 3 . . 10 43 . Core Hits 29 | 7 1 . . 4 17 . Critical Kills . | . . . . . . . Critical Parts Destroyed . | . . . . . . . Critical Strikes 1 | 1 . . . . . . Burn 1 | 1 . . . . . . Melee Attacks . | . . . . . . . Impact . | . . . . . . . Slashing . | . . . . . . . Piercing . | . . . . . . . Sneak Attacks . | . . . . . . . Combat Hostiles . | . . . . . . . Follow-up Attacks . | . . . . . . . Damage Inflicted 1014 | 189 35 . . 128 662 . Guns 569 | 189 35 . . 128 217 . Cannons 322 | . . . . . 322 . Explosions 99 | . . . . . 99 . Melee . | . . . . . . . Ramming 24 | . . . . . 24 . Kinetic 539 | . . . . . 539 . Thermal 451 | 189 35 . . 128 99 . Explosive . | . . . . . . . Electromagnetic . | . . . . . . . Impact . | . . . . . . . Slashing . | . . . . . . . Piercing . | . . . . . . . Highest Corruption . | . . . . . . . Average Corruption . | . . . . . . . Corruption Purged . | . . . . . . . Corruption Blocked . | . . . . . . . Overload Shots . | . . . . . . . Overflow Damage . | . . . . . . . Projectiles . | . . . . . . . Explosions . | . . . . . . . Melee . | . . . . . . . Knockbacks 6 | . . . . . 6 . Impact . | . . . . . . . Kinetic 6 | . . . . . 6 . Secondary . | . . . . . . . Self-Inflicted Damage 99 | . . . . . 99 . Shots 1 | . . . . . 1 . Rammed 1 | . . . . . 1 . Targets Rammed 1 | . . . . . 1 . Kicked . | . . . . . . . Crushed . | . . . . . . . Highest Temperature 300 | 150 60 . . 300 22 . Average Temperature 103 | 79 31 . . 157 12 . Received Heat Transfer 135 | . . . . . 135 . Siege Activations . | . . . . . . . Martial Activations . | . . . . . . . Shielding Activations . | . . . . . . . Robots Disrupted . | . . . . . . . Combat Hostiles . | . . . . . . . Robots Corrupted . | . . . . . . . Combat Hostiles . | . . . . . . . Parts Fried . | . . . . . . . Impact Corruptions . | . . . . . . . Robots Melted . | . . . . . . . Combat Hostiles . | . . . . . . . Parts Melted 5 | 4 . . . 1 . . Heat Transferred 1116 | 582 87 . . 347 100 . Parts Sabotaged . | . . . . . . . Parts Stolen . | . . . . . . . Parts Stripped . | . . . . . . . Power Chain Reactions . | . . . . . . . Alert | -11 -10 -10 -10 -9 -8 -7 ------- Run | Yrd Mat Min Exi Min Mat Fac Maximum Alert Level . | . . . . . . . Low Security (%) 100 | 100 100 100 . 100 100 100 Level 1 . | . . . . . . . Level 2 . | . . . . . . . Level 3 . | . . . . . . . Level 4 . | . . . . . . . Level 5 . | . . . . . . . High Security . | . . . . . . . Max Security . | . . . . . . . Peak Influence 80 | 10 5 . . 80 64 26 Initial 26 | . . . . . . 26 Average 21 | 1 . . . 36 30 26 Influence Increases 408 | 30 9 . . 90 279 . Destroy 0b10 Robot/C 160 | . . . . 80 80 . Destroy 0b10 Robot/NC 55 | 30 . . . . 25 . Destroy Leader 34 | . . . . 10 24 . Successful Hack 47 | . 9 . . . 38 . Disable Machine 30 | . . . . . 30 . Destroy Structure 22 | . . . . . 22 . Lose Combat Pursuer 60 | . . . . . 60 . Influence Decreases 382 | 30 9 . . 90 220 33 Entered New Map 33 | . . . . . . 33 Time Decay 339 | 30 9 . . 90 210 . Lost Part 10 | . . . . . 10 . Squads Dispatched 4 | . 2 . . . 2 . Investigation 3 | . 2 . . . 1 . Extermination . | . . . . . . . Reinforcement 1 | . . . . . 1 . Assault . | . . . . . . . Garrison . | . . . . . . . Intercept . | . . . . . . . Searches Triggered . | . . . . . . . Construction Impeded . | . . . . . . . Haulers Reinforced . | . . . . . . . Active Scanning Responses . | . . . . . . . Cargo Convoy Interrupts . | . . . . . . . Stealth | -11 -10 -10 -10 -9 -8 -7 --------- Run | Yrd Mat Min Exi Min Mat Fac Distress Signals 2 | . . . . . 2 . Communications Jammed . | . . . . . . . Distress Signals . | . . . . . . . Times Spotted 22 | . 4 . . 3 15 . Peak Tracking Total 7 | . 3 . . 3 7 . Tactical Retreats 3 | . . . . . 3 . Traps | -11 -10 -10 -10 -9 -8 -7 ------- Run | Yrd Mat Min Exi Min Mat Fac Traps Triggered . | . . . . . . . Indirectly . | . . . . . . . Trap Hack Attempts . | . . . . . . . Triggered . | . . . . . . . Disarmed . | . . . . . . . Reprogrammed . | . . . . . . . Reused . | . . . . . . . Traps Extracted . | . . . . . . . Installed . | . . . . . . . Triggered . | . . . . . . . Machines | -11 -10 -10 -10 -9 -8 -7 ---------- Run | Yrd Mat Min Exi Min Mat Fac Machines Disabled 2 | . . . . . 2 . Max in Single Turn 2 | . . . . . 2 . Machines Repaired . | . . . . . . . Machines Dismantled . | . . . . . . . Machines Sabotaged . | . . . . . . . Overloaded Fab Kills . | . . . . . . . Hacking | -11 -10 -10 -10 -9 -8 -7 --------- Run | Yrd Mat Min Exi Min Mat Fac Machines Accessed 8 | . 2 . 1 . 5 . Terminals 7 | . 2 . . . 5 . Fabricators . | . . . . . . . Repair Stations . | . . . . . . . Recycling Units . | . . . . . . . Scanalyzers . | . . . . . . . Garrison Access . | . . . . . . . Total Hacks 27 | . 9 . 1 . 17 . Successful 11 | . 4 . 1 . 6 . Failed 16 | . 5 . . . 11 . Catastrophic 2 | . . . . . 2 . Database Lockouts . | . . . . . . . Manual 27 | . 9 . 1 . 17 . Terminals 26 | . 9 . . . 17 . Fabricators . | . . . . . . . Repair Stations . | . . . . . . . Recycling Units . | . . . . . . . Scanalyzers . | . . . . . . . Garrison Access . | . . . . . . . Terminal Hacks 4 | . 2 . 1 . 1 . Terminal Index 2 | . 1 . . . 1 . Zone Layout 1 | . 1 . . . . . Proto ID Catalog 1 | . . . 1 . . . Fabricator Hacks . | . . . . . . . Repair Station Hacks . | . . . . . . . Recycling Unit Hacks . | . . . . . . . Scanalyzer . | . . . . . . . Garrison Access Hacks . | . . . . . . . Unauthorized Hacks 7 | . 2 . . . 5 . Terminals 7 | . 2 . . . 5 . Botnet 7 | . 2 . . . 5 . Fabricators . | . . . . . . . Repair Stations . | . . . . . . . Recycling Units . | . . . . . . . Scanalyzers . | . . . . . . . Garrison Access . | . . . . . . . Data Cores Recovered . | . . . . . . . Used . | . . . . . . . Hacking Detections 7 | . 2 . . . 5 . Full Trace Events 5 | . 2 . . . 3 . Feedback Events . | . . . . . . . Feedback Blocked . | . . . . . . . Robot Schematics Acquired . | . . . . . . . Robots Built . | . . . . . . . Authchips . | . . . . . . . Time . | . . . . . . . Total Robot Build Rating . | . . . . . . . Part Schematics Acquired . | . . . . . . . Parts Built . | . . . . . . . Authchips . | . . . . . . . Time . | . . . . . . . Total Part Build Rating . | . . . . . . . Parts Repaired . | . . . . . . . Time . | . . . . . . . Parts Recycled . | . . . . . . . Recycled Matter . | . . . . . . . Retrieved Matter . | . . . . . . . Retrieved Components . | . . . . . . . Parts Scanalyzed . | . . . . . . . Part Schematics Acquired . | . . . . . . . Parts Damaged . | . . . . . . . Bothacking | -11 -10 -10 -10 -9 -8 -7 ------------ Run | Yrd Mat Min Exi Min Mat Fac Used RIF Installer . | . . . . . . . Robots Hacked . | . . . . . . . Non-combat . | . . . . . . . Combat . | . . . . . . . Robot Hacks Applied . | . . . . . . . Relay Couplers Released . | . . . . . . . Fabnet Peak Effective % . | . . . . . . . Robots Rewired . | . . . . . . . Allies Hacked . | . . . . . . . Hacks Repelled . | . . . . . . . Allies | -11 -10 -10 -10 -9 -8 -7 -------- Run | Yrd Mat Min Exi Min Mat Fac Total Allies . | . . . . . . . Largest Group . | . . . . . . . Highest-Rated Group . | . . . . . . . Highest-Rated Ally . | . . . . . . . Total Orders 1 | . . . 1 . . . RETURN 1 | . . . 1 . . . Ally Attacks . | . . . . . . . Total Damage . | . . . . . . . Kills . | . . . . . . . Allies Corrupted . | . . . . . . . Allies Melted . | . . . . . . . Intel | -11 -10 -10 -10 -9 -8 -7 ------- Run | Yrd Mat Min Exi Min Mat Fac Active Infowar (turns) 759 | 36 190 32 213 216 72 . Seismic 759 | 36 190 32 213 216 72 . Robot Analysis Total . | . . . . . . . Derelict Logs Recovered . | . . . . . . . Drone Launches 1 | . . . 1 . . . Drone Recoveries 1 | . . . 1 . . . Exploration | -11 -10 -10 -10 -9 -8 -7 ------------- Run | Yrd Mat Min Exi Min Mat Fac Turns Passed 1379 | 154 190 32 250 216 524 13 Spaces Moved 1013 | 69 108 34 249 134 381 38 Core 4 | 4 . . . . . . Treads 156 | 65 87 . . . 4 . Legs . | . . . . . . . Wheels 587 | . 21 34 249 134 149 . Hover 266 | . . . . . 228 38 Flight . | . . . . . . . Fastest Speed 34 | 50 95 95 90 105 34 34 Average Speed 104 | 153 147 95 96 105 97 34 Slowest Speed 240 | 160 160 95 105 105 240 34 Overloaded Moves . | . . . . . . . Propulsion Burnouts . | . . . . . . . Robots Hopped . | . . . . . . . Potential Cave-ins . | . . . . . . . Cave-ins Triggered . | . . . . . . . Exploration Rate (%) 23 | 5 20 11 61 35 32 2 Regions Visited 6 Branch Regions 3 Pre-discovered Areas . | . . . . . . . Known Exits Taken . | . . . . . . . Unknown Exits Taken 6 | 1 1 1 1 1 1 . Scrap Searched 2 | . . . . 2 . . Spaces Dug . | . . . . . . . Terrain Destroyed 21 | . . . . . 21 . Melee . | . . . . . . . Projectile . | . . . . . . . AOE 21 | . . . . . 21 . Terrain Rammed . | . . . . . . . Walls Destroyed . | . . . . . . . Machines Disabled . | . . . . . . . Actions | -11 -10 -10 -10 -9 -8 -7 --------- Run | Yrd Mat Min Exi Min Mat Fac Total 1222 | 90 134 33 258 188 481 38 Wait 86 | . 21 . . 37 28 . Move 1008 | 68 107 33 248 133 381 38 Hop . | . . . . . . . Pick Up 30 | 3 3 . 4 2 18 . Fast Attach 16 | 7 . . . 2 7 . Attach 8 | . . . 1 . 7 . Detach . | . . . . . . . Swap 4 | . 1 . 3 . . . Drop 16 | . . . 2 3 11 . Fire 54 | 12 2 . . 11 29 . Melee . | . . . . . . . Ram . | . . . . . . . Kick . | . . . . . . . Crush . | . . . . . . . Escape Stasis . | . . . . . . . Rewire . | . . . . . . . Trap . | . . . . . . . Miscellaneous . | . . . . . . . Route ------- -11/Scrapyard -10/Materials -10/Mines -10/Exiles -9/Mines -8/Materials -7/Factory History --------- Turn | Location | Event 5 | -11/Scrapyard | Discovered new exit (range 15) 155 | -11/Scrapyard | Entered Materials 270 | -10/Materials | Discovered new exit (range 15) 308 | -10/Materials | Build established: Mutant 345 | -10/Materials | Entered Mines 346 | -10/Mines | Assembled infested the area 372 | -10/Mines | Deemed a non-threat by the Exiles lab entrance 373 | -10/Mines | Discovered new exit (range 5) 377 | -10/Mines | Entered Exiles 403 | -10/Exiles | Met 8R-AWN 417 | -10/Exiles | Met EX-HEX 455 | -10/Exiles | Met EX-BIN 466 | -10/Exiles | Aligned with FarCom system 467 | -10/Exiles | Given EX-Vault access code 492 | -10/Exiles | Opened EX-Vault 498 | -10/Exiles | Found Supersonic Drone Bay 520 | -10/Exiles | Warned to stay clear of 0b10 Research branches 550 | -10/Exiles | Met EX-DEC 614 | -10/Exiles | Discovered new exit (range 10) 627 | -10/Exiles | Left Exiles lab with Supersonic Drone Bay 627 | -10/Exiles | Entered Mines 628 | -9/Mines | Met a Derelict bent on vengeance 828 | -9/Mines | Discovered new exit (range 16) 843 | -9/Mines | Entered Materials 843 | -8/Materials | Evolved 4 slots: Propulsion x4 946 | -8/Materials | Lost 3 parts (1p1n1u) 1360 | -8/Materials | Discovered new exit (range 16) 1367 | -8/Materials | Entered Factory 1367 | -7/Factory | Evolved 2 slots: Propulsion x1, Utility x1 1380 | -7/Factory | Self-destructed Last Messages --------------- >>Trojan(Botnet) Trojan loaded successfully. Testing... Terminal linked with 3 systems. Awaiting botnet instructions. 01360_ EXIT=FOUND 01366_ Connecting with Terminal... >>Trojan(Botnet) Trojan loaded successfully. Testing... Terminal linked with 4 systems. Awaiting botnet instructions. 01366_ ALERT: Suspicious activity at Terminal M005. Dispatching Investigation squad. 01367_ Slammed into G-47 Trooper. PARAMETERS=PROPULSION+1,UTILITY+1 LOCATION=UNKNOWN GOAL=ESCAPE 01367_ Receiving FarCom transmissions... 01377_ K-01 Serf collects debris. Map ----- +----------------------------------------------------+ | ??????????????????????????? | | ??????????????????????????? | | ??????????????????????????? | | ??????????????????????????? | | ??????????????????????????? | | ??????????????????????????? | | ??????????????????????????? | | ??????????????????????????? | | ?????? ???????????????? | | ?????# ????????????? | | ?????# ??????????? | | ?????# ##????????? | | ?????+ +????????? | | ?????# #????????? | | ?????# ##???????? | | ?????# ????????? | | ?????# #?????????? | | ?????# #?????????? | | ?????# #?????????? | | ###### #?????????? | | # # #?????????? | | # # ??????????? | | # # ###+##########? | | #! # # #? | | # + + +? | | # @ #+###### * #? | | # # ????# #? | | # # "????# | #? | | # *# "R???#! #? | | ###### ""???# """ "" #? | | ?????# ??# """ "" #? | | ##########??# """ """ #? | | # ??# """ #? | | # ??# """ #? | | # ?# #? | | # ?#+##+#########? | | # # #?????? | | # # #?????? | | # + #?????? | | # # #?????? | | # # #?????? | | # ?### #?????? | | # ???# #?????? | | # ????# #?????? | | # ????# #?????? | | #####+###?????# #?????? | | ??????????????# #?????? | | ????????????? #?????? | | ???????????? ?????? | | ???????????" ????? | +----------------------------------------------------+ Best States ------------- Heat Dissipation 34 Energy Generation 14 Energy Capacity 160 Matter Stores 300 Matter Capacity 300 Sight Range 16 Terrain Scan Density 10 Additional Mass Support 6 Evasion (%) 58 Recoil Reduction 2 Item Schematics ----------------- None Robot Schematics ------------------ None Fabricated ------------ Nothing Repaired ---------- Nothing Alien Tech Used ----------------- None Achievements -------------- None Challenges ------------ None Game ------ Seed SmartbombSeismicRefractor Manual? 0 Play Time 00:15:09 Cumulative 10.3 hours Start 2025.06.30 @ 23:33:46 End 2025.06.30 @ 23:48:44 Sessions 1 Manual Loads 0 Difficulty Rogue Special Mode None Game No. 14 Rogue 14 Adventurer 0 Explorer 0 Win Type - Total 1 Types 1/0/0/0/0/0/0/0/0/0 Lore% 28 Gallery% 18 Achievement% 24 Wizard Run 0 Options --------- Layout 1 ASCII 0 Keyboard 1 Movement Arrows Keybinds 0 Fullscreen 1 Font 16/SmallcapsGlow Map View 50x54 Zoom Use 0% Tactical HUD 1 Map Filters NONE Filters NONE Steam 1 RUN: 47944595-eabb-41cf-9bc4-a0a2226a65ba